[Event "Titled Tuesday Blitz March 21 Early 2023"]
[White "ritanovikova"]
[Black "Mortazavi, Ali"]
[BlackFideId "401323"]
[WhiteElo "2215"]
[BlackElo "2339"]
[Result "0-1"]
[Round "02"]
[TimeControl "180+2"]
[Date "2023.03.21"]
[WhiteClock "0:00:01"]
[BlackClock "0:00:09"]

1. e4 {[%clk 0:02:58]}  c6 {[%clk 0:02:59]} 2. d4 {[%clk 0:02:58]}  d5 {[%clk 0:03:00]} 3. exd5 {[%clk 0:02:58]}  cxd5 {[%clk 0:02:59]} 4. Bd3 {[%clk 0:02:58]}  Nc6 {[%clk 0:02:59]} 5. c3 {[%clk 0:02:54]}  Qc7 {[%clk 0:03:00]} 6. Ne2 {[%clk 0:02:53]}  Bg4 {[%clk 0:02:55]} 7. f3 {[%clk 0:02:50]}  Bd7 {[%clk 0:02:55]} 8. Bf4 {[%clk 0:02:50]}  e5 {[%clk 0:02:55]} 9. dxe5 {[%clk 0:02:49]}  Nxe5 {[%clk 0:02:56]} 10. O-O {[%clk 0:02:48]}  Bd6 {[%clk 0:02:56]} 11. Bc2 {[%clk 0:02:33]}  Ne7 {[%clk 0:02:54]} 12. Na3 {[%clk 0:02:25]}  O-O {[%clk 0:02:48]} 13. Kh1 {[%clk 0:02:19]}  Rad8 {[%clk 0:02:34]} 14. Nd4 {[%clk 0:02:16]}  a6 {[%clk 0:02:33]} 15. Re1 {[%clk 0:02:13]}  Rfe8 {[%clk 0:02:24]} 16. Bg3 {[%clk 0:01:53]}  b5 {[%clk 0:02:12]} 17. Qe2 {[%clk 0:01:45]}  N7g6 {[%clk 0:02:12]} 18. Bxg6 {[%clk 0:01:43]}  hxg6 {[%clk 0:02:03]} 19. Qd2 {[%clk 0:01:25]}  Re7 {[%clk 0:01:32]} 20. Re2 {[%clk 0:01:18]}  Rde8 {[%clk 0:01:32]} 21. Rae1 {[%clk 0:01:17]}  f6 {[%clk 0:01:14]} 22. Qc2 {[%clk 0:01:00]}  Kf7 {[%clk 0:00:54]} 23. Nb1 {[%clk 0:00:45]}  Rh8 {[%clk 0:00:52]} 24. Kg1 {[%clk 0:00:43]}  Ree8 {[%clk 0:00:48]} 25. Nd2 {[%clk 0:00:38]}  Nc4 {[%clk 0:00:46]} 26. Nxc4 {[%clk 0:00:38]}  Bxg3 {[%clk 0:00:42]} 27. hxg3 {[%clk 0:00:30]}  dxc4 {[%clk 0:00:22]} 28. Rxe8 {[%clk 0:00:26]}  Bxe8 {[%clk 0:00:20]} 29. Kf2 {[%clk 0:00:23]}  Rh5 {[%clk 0:00:16]} 30. f4 {[%clk 0:00:22]}  Rd5 {[%clk 0:00:12]} 31. Qe2 {[%clk 0:00:21]}  Qd7 {[%clk 0:00:13]} 32. Qe4 {[%clk 0:00:15]}  Kf8 {[%clk 0:00:12]} 33. g4 {[%clk 0:00:14]}  Bf7 {[%clk 0:00:12]} 34. f5 {[%clk 0:00:12]}  g5 {[%clk 0:00:12]} 35. Qe3 {[%clk 0:00:10]}  Kg8 {[%clk 0:00:12]} 36. Rh1 {[%clk 0:00:08]}  Re5 {[%clk 0:00:12]} 37. Qh3 {[%clk 0:00:08]}  Kf8 {[%clk 0:00:12]} 38. Qh8+ {[%clk 0:00:07]}  Bg8 {[%clk 0:00:13]} 39. Ne6+ {[%clk 0:00:06]}  Rxe6 {[%clk 0:00:13]} 40. fxe6 {[%clk 0:00:05]}  Qxe6 {[%clk 0:00:13]} 41. Qh3 {[%clk 0:00:03]}  Qe4 {[%clk 0:00:11]} 42. Re1 {[%clk 0:00:03]}  Qc2+ {[%clk 0:00:08]} 43. Re2 {[%clk 0:00:02]}  Qc1 {[%clk 0:00:09]} 44. Qe3 {[%clk 0:00:01]}  Bf7 {[%clk 0:00:09]} 0-1


[Site "https://www.chess.com"]

[Event "Titled Tuesday Blitz March 21 Early 2023"]
[White "Ciuffoletti, Paolo"]
[Black "Horak, Martin"]
[WhiteFideId "807630"]
[BlackFideId "367095"]
[WhiteElo "2143"]
[BlackElo "2091"]
[Result "0-1"]
[Round "02"]
[TimeControl "180+2"]
[Date "2023.03.21"]
[WhiteClock "0:00:01"]
[BlackClock "0:00:45"]

1. e4 {[%clk 0:03:00]}  c5 {[%clk 0:02:59]} 2. d4 {[%clk 0:03:00]}  cxd4 {[%clk 0:02:58]} 3. c3 {[%clk 0:03:00]}  dxc3 {[%clk 0:02:58]} 4. Nxc3 {[%clk 0:02:59]}  Nc6 {[%clk 0:02:43]} 5. Nf3 {[%clk 0:02:59]}  d6 {[%clk 0:02:39]} 6. Bc4 {[%clk 0:02:58]}  a6 {[%clk 0:02:37]} 7. O-O {[%clk 0:02:56]}  Nf6 {[%clk 0:02:36]} 8. h3 {[%clk 0:02:55]}  e6 {[%clk 0:02:34]} 9. Qe2 {[%clk 0:02:53]}  Be7 {[%clk 0:02:34]} 10. Rd1 {[%clk 0:02:53]}  Qc7 {[%clk 0:02:34]} 11. Bf4 {[%clk 0:02:52]}  Ne5 {[%clk 0:02:33]} 12. Bb3 {[%clk 0:02:46]}  O-O {[%clk 0:02:28]} 13. Rac1 {[%clk 0:02:44]}  Qb8 {[%clk 0:02:28]} 14. Nd4 {[%clk 0:02:41]}  Bd7 {[%clk 0:02:07]} 15. Bg3 {[%clk 0:02:31]}  b5 {[%clk 0:02:02]} 16. f4 {[%clk 0:02:18]}  Nc6 {[%clk 0:02:01]} 17. Nxc6 {[%clk 0:01:49]}  Bxc6 {[%clk 0:02:01]} 18. e5 {[%clk 0:01:46]}  Nd7 {[%clk 0:01:48]} 19. exd6 {[%clk 0:01:28]}  Bxd6 {[%clk 0:01:37]} 20. Ne4 {[%clk 0:00:35]}  Bxe4 {[%clk 0:01:27]} 21. Qxe4 {[%clk 0:00:34]}  Nc5 {[%clk 0:01:27]} 22. Qd4 {[%clk 0:00:13]}  Nxb3 {[%clk 0:01:25]} 23. axb3 {[%clk 0:00:12]}  Rd8 {[%clk 0:01:22]} 24. Kh2 {[%clk 0:00:09]}  Be7 {[%clk 0:01:19]} 25. Qe4 {[%clk 0:00:07]}  Bf6 {[%clk 0:00:54]} 26. Rxd8+ {[%clk 0:00:05]}  Qxd8 {[%clk 0:00:53]} 27. Rc6 {[%clk 0:00:03]}  Bxb2 {[%clk 0:00:49]} 28. f5 {[%clk 0:00:02]}  exf5 {[%clk 0:00:45]} 29. Qxf5 {[%clk 0:00:02]}  g6 {[%clk 0:00:46]} 30. Qe4 {[%clk 0:00:01]}  Bg7 {[%clk 0:00:45]} 0-1


[Site "https://www.chess.com"]

[Event "Titled Tuesday Blitz March 21 Early 2023"]
[White "Miszler, Levente"]
[Black "Fernandez Hernandez, Gerardo"]
[WhiteFideId "763276"]
[BlackFideId "2207400"]
[WhiteElo "2176"]
[BlackElo "2202"]
[Result "1/2-1/2"]
[Round "02"]
[TimeControl "180+2"]
[Date "2023.03.21"]
[WhiteClock "0:01:12"]
[BlackClock "0:00:52"]

1. c4 {[%clk 0:03:00]}  e5 {[%clk 0:02:59]} 2. Nc3 {[%clk 0:03:00]}  Nc6 {[%clk 0:02:59]} 3. g3 {[%clk 0:03:01]}  f5 {[%clk 0:02:59]} 4. Bg2 {[%clk 0:03:01]}  Nf6 {[%clk 0:02:59]} 5. d3 {[%clk 0:03:00]}  Bb4 {[%clk 0:02:59]} 6. Bd2 {[%clk 0:02:59]}  d6 {[%clk 0:02:58]} 7. a3 {[%clk 0:02:59]}  Bxc3 {[%clk 0:02:59]} 8. Bxc3 {[%clk 0:02:59]}  O-O {[%clk 0:02:59]} 9. e3 {[%clk 0:02:58]}  Qe8 {[%clk 0:02:56]} 10. Ne2 {[%clk 0:02:58]}  Qh5 {[%clk 0:02:56]} 11. d4 {[%clk 0:02:55]}  e4 {[%clk 0:02:45]} 12. Nf4 {[%clk 0:02:52]}  Qf7 {[%clk 0:02:41]} 13. h4 {[%clk 0:02:48]}  d5 {[%clk 0:02:31]} 14. c5 {[%clk 0:02:36]}  Be6 {[%clk 0:02:15]} 15. b4 {[%clk 0:02:34]}  Ne7 {[%clk 0:01:58]} 16. Qb3 {[%clk 0:02:29]}  Ng6 {[%clk 0:01:56]} 17. O-O-O {[%clk 0:02:15]}  Nxf4 {[%clk 0:01:50]} 18. gxf4 {[%clk 0:02:16]}  Ng4 {[%clk 0:01:51]} 19. Qc2 {[%clk 0:02:11]}  c6 {[%clk 0:01:39]} 20. Rdg1 {[%clk 0:02:08]}  b6 {[%clk 0:01:35]} 21. Bh3 {[%clk 0:02:07]}  h5 {[%clk 0:01:34]} 22. Bd2 {[%clk 0:02:04]}  Nxf2 {[%clk 0:01:31]} 23. Rh2 {[%clk 0:01:53]}  Ng4 {[%clk 0:01:15]} 24. Rhg2 {[%clk 0:01:51]}  Qd7 {[%clk 0:01:10]} 25. Bxg4 {[%clk 0:01:41]}  fxg4 {[%clk 0:01:09]} 26. Rf2 {[%clk 0:01:35]}  Bf5 {[%clk 0:01:07]} 27. Kb2 {[%clk 0:01:32]}  Rfb8 {[%clk 0:01:05]} 28. Rc1 {[%clk 0:01:31]}  b5 {[%clk 0:00:57]} 29. Rg1 {[%clk 0:01:22]}  a6 {[%clk 0:00:48]} 30. Rh2 {[%clk 0:01:21]}  Ra7 {[%clk 0:00:48]} 31. Bc3 {[%clk 0:01:15]}  Rba8 {[%clk 0:00:48]} 32. Qd2 {[%clk 0:01:15]}  g6 {[%clk 0:00:49]} 33. Rg3 {[%clk 0:01:13]}  Qc7 {[%clk 0:00:49]} 34. Rg1 {[%clk 0:01:12]}  Qe7 {[%clk 0:00:49]} 35. Rg3 {[%clk 0:01:11]}  Kh7 {[%clk 0:00:50]} 36. Rg1 {[%clk 0:01:11]}  Qd8 {[%clk 0:00:50]} 37. Rg3 {[%clk 0:01:11]}  Qe7 {[%clk 0:00:51]} 38. Rg1 {[%clk 0:01:11]}  Qd8 {[%clk 0:00:51]} 39. Rg3 {[%clk 0:01:12]}  Qe7 {[%clk 0:00:52]} 1/2-1/2


[Site "https://www.chess.com"]

[Event "Titled Tuesday Blitz March 21 Early 2023"]
[White "Sabar, Ethmane Daouda"]
[Black "Rom, Jasper"]
[WhiteFideId "19600097"]
[BlackFideId "2023733"]
[WhiteElo "1950"]
[BlackElo "2233"]
[Result "0-1"]
[Round "02"]
[TimeControl "180+2"]
[Date "2023.03.21"]
[WhiteClock "0:00:05"]
[BlackClock "0:00:47"]

1. b3 {[%clk 0:03:00]}  e5 {[%clk 0:02:59]} 2. Bb2 {[%clk 0:02:59]}  f6 {[%clk 0:02:59]} 3. e3 {[%clk 0:02:59]}  d5 {[%clk 0:02:59]} 4. d4 {[%clk 0:02:58]}  e4 {[%clk 0:02:56]} 5. c4 {[%clk 0:02:56]}  c6 {[%clk 0:02:56]} 6. Ne2 {[%clk 0:02:53]}  Be6 {[%clk 0:02:56]} 7. Nf4 {[%clk 0:02:48]}  Bf7 {[%clk 0:02:56]} 8. h4 {[%clk 0:02:48]}  Bd6 {[%clk 0:02:49]} 9. Be2 {[%clk 0:02:32]}  Ne7 {[%clk 0:02:46]} 10. Nc3 {[%clk 0:02:21]}  a6 {[%clk 0:02:41]} 11. c5 {[%clk 0:02:20]}  Bc7 {[%clk 0:02:40]} 12. b4 {[%clk 0:02:19]}  Nd7 {[%clk 0:02:39]} 13. a4 {[%clk 0:02:19]}  O-O {[%clk 0:02:37]} 14. h5 {[%clk 0:02:14]}  Nf5 {[%clk 0:02:24]} 15. g3 {[%clk 0:02:11]}  Re8 {[%clk 0:02:21]} 16. Bg4 {[%clk 0:02:07]}  Nh6 {[%clk 0:02:16]} 17. Bh3 {[%clk 0:01:55]}  Nf8 {[%clk 0:02:17]} 18. Qe2 {[%clk 0:01:53]}  Ne6 {[%clk 0:02:16]} 19. Kd2 {[%clk 0:01:48]}  Ng5 {[%clk 0:02:15]} 20. Bg2 {[%clk 0:01:45]}  Qd7 {[%clk 0:02:15]} 21. Rh4 {[%clk 0:01:42]}  Nf5 {[%clk 0:02:13]} 22. Rhh1 {[%clk 0:01:41]}  h6 {[%clk 0:02:11]} 23. b5 {[%clk 0:01:22]}  Ba5 {[%clk 0:02:05]} 24. Kc2 {[%clk 0:01:16]}  Ne6 {[%clk 0:01:56]} 25. Na2 {[%clk 0:01:06]}  axb5 {[%clk 0:01:51]} 26. axb5 {[%clk 0:01:07]}  cxb5 {[%clk 0:01:50]} 27. Bc3 {[%clk 0:01:05]}  Nc7 {[%clk 0:01:41]} 28. Bxa5 {[%clk 0:01:03]}  Rxa5 {[%clk 0:01:42]} 29. Nb4 {[%clk 0:00:56]}  Ra4 {[%clk 0:01:35]} 30. g4 {[%clk 0:00:53]}  Rxb4 {[%clk 0:01:29]} 31. gxf5 {[%clk 0:00:51]}  Rc4+ {[%clk 0:01:29]} 32. Kb3 {[%clk 0:00:46]}  b4 {[%clk 0:01:19]} 33. Bh3 {[%clk 0:00:39]}  Qb5 {[%clk 0:01:18]} 34. Rhc1 {[%clk 0:00:21]}  Na6 {[%clk 0:01:17]} 35. Bf1 {[%clk 0:00:17]}  b6 {[%clk 0:01:16]} 36. Qd2 {[%clk 0:00:15]}  bxc5 {[%clk 0:01:13]} 37. Bxc4 {[%clk 0:00:14]}  dxc4+ {[%clk 0:01:12]} 38. Kc2 {[%clk 0:00:15]}  b3+ {[%clk 0:00:59]} 39. Kd1 {[%clk 0:00:15]}  b2 {[%clk 0:00:59]} 40. Rcb1 {[%clk 0:00:12]}  bxa1=Q {[%clk 0:00:58]} 41. Rxa1 {[%clk 0:00:13]}  Qb3+ {[%clk 0:00:51]} 42. Ke1 {[%clk 0:00:12]}  c3 {[%clk 0:00:51]} 43. Qe2 {[%clk 0:00:10]}  Nb4 {[%clk 0:00:48]} 44. dxc5 {[%clk 0:00:05]}  Nc2+ {[%clk 0:00:47]} 0-1


[Site "https://www.chess.com"]

[Event "Titled Tuesday Blitz March 21 Early 2023"]
[White "Remolar Gallen, Jose"]
[Black "Hernandez Jimenez, Alexander Andres"]
[WhiteFideId "2215187"]
[BlackFideId "3900452"]
[WhiteElo "2223"]
[BlackElo "2112"]
[Result "0-1"]
[Round "02"]
[TimeControl "180+2"]
[Date "2023.03.21"]
[WhiteClock "0:00:22"]
[BlackClock "0:00:52"]

1. e4 {[%clk 0:03:00]}  e5 {[%clk 0:02:56]} 2. Nf3 {[%clk 0:03:00]}  Nc6 {[%clk 0:02:56]} 3. Bb5 {[%clk 0:02:59]}  a6 {[%clk 0:02:55]} 4. Ba4 {[%clk 0:02:59]}  Nf6 {[%clk 0:02:55]} 5. O-O {[%clk 0:02:57]}  b5 {[%clk 0:02:55]} 6. Bb3 {[%clk 0:02:56]}  Be7 {[%clk 0:02:55]} 7. Re1 {[%clk 0:02:54]}  d6 {[%clk 0:02:53]} 8. h3 {[%clk 0:02:49]}  Na5 {[%clk 0:02:49]} 9. d4 {[%clk 0:02:48]}  Nxb3 {[%clk 0:02:49]} 10. axb3 {[%clk 0:02:48]}  Nd7 {[%clk 0:02:37]} 11. Nc3 {[%clk 0:02:36]}  Bb7 {[%clk 0:02:35]} 12. Nd5 {[%clk 0:02:32]}  O-O {[%clk 0:02:32]} 13. dxe5 {[%clk 0:02:23]}  Nxe5 {[%clk 0:02:30]} 14. Nxe5 {[%clk 0:02:22]}  dxe5 {[%clk 0:02:30]} 15. Qh5 {[%clk 0:02:06]}  Bxd5 {[%clk 0:02:23]} 16. exd5 {[%clk 0:01:46]}  Qxd5 {[%clk 0:02:23]} 17. Rxe5 {[%clk 0:01:44]}  Qd7 {[%clk 0:01:48]} 18. Bf4 {[%clk 0:01:28]}  Bf6 {[%clk 0:01:45]} 19. Rd1 {[%clk 0:01:19]}  Qc6 {[%clk 0:01:16]} 20. Rc5 {[%clk 0:01:16]}  Qe4 {[%clk 0:01:16]} 21. Be3 {[%clk 0:00:44]}  g6 {[%clk 0:00:58]} 22. Qg4 {[%clk 0:00:35]}  Qxg4 {[%clk 0:00:52]} 23. hxg4 {[%clk 0:00:36]}  Rfd8 {[%clk 0:00:52]} 24. Rxd8+ {[%clk 0:00:26]}  Rxd8 {[%clk 0:00:52]} 25. Rxc7 {[%clk 0:00:27]}  Rd1+ {[%clk 0:00:52]} 26. Kh2 {[%clk 0:00:22]}  Be5+ {[%clk 0:00:52]} 0-1


[Site "https://www.chess.com"]

[Event "Titled Tuesday Blitz March 21 Early 2023"]
[White "Kornyukov, Alexey"]
[Black "Kopczynski, Michal"]
[WhiteFideId "4150457"]
[BlackFideId "1124200"]
[WhiteElo "2352"]
[BlackElo "2212"]
[Result "0-1"]
[Round "02"]
[TimeControl "180+2"]
[Date "2023.03.21"]
[WhiteClock "0:02:07"]
[BlackClock "0:01:36"]

1. e4 {[%clk 0:03:00]}  b6 {[%clk 0:02:59]} 2. d4 {[%clk 0:02:59]}  Bb7 {[%clk 0:03:00]} 3. Nd2 {[%clk 0:02:57]}  e6 {[%clk 0:03:01]} 4. Ngf3 {[%clk 0:02:58]}  Nf6 {[%clk 0:03:01]} 5. Bd3 {[%clk 0:02:57]}  d5 {[%clk 0:03:02]} 6. e5 {[%clk 0:02:57]}  Nfd7 {[%clk 0:03:02]} 7. O-O {[%clk 0:02:57]}  c5 {[%clk 0:03:03]} 8. c4 {[%clk 0:02:57]}  Nc6 {[%clk 0:03:03]} 9. cxd5 {[%clk 0:02:57]}  exd5 {[%clk 0:03:01]} 10. e6 {[%clk 0:02:56]}  fxe6 {[%clk 0:03:00]} 11. dxc5 {[%clk 0:02:54]}  Nxc5 {[%clk 0:02:59]} 12. Nb3 {[%clk 0:02:52]}  Nxd3 {[%clk 0:02:57]} 13. Qxd3 {[%clk 0:02:52]}  Be7 {[%clk 0:02:56]} 14. Nbd4 {[%clk 0:02:50]}  Qd7 {[%clk 0:02:48]} 15. Bg5 {[%clk 0:02:35]}  Nxd4 {[%clk 0:02:24]} 16. Qxd4 {[%clk 0:02:20]}  Bxg5 {[%clk 0:02:02]} 17. Nxg5 {[%clk 0:02:17]}  O-O {[%clk 0:02:03]} 18. Qh4 {[%clk 0:02:15]}  h6 {[%clk 0:02:02]} 19. Nf3 {[%clk 0:02:12]}  Rf5 {[%clk 0:01:38]} 20. Rae1 {[%clk 0:02:07]}  Raf8 {[%clk 0:01:37]} 21. Nd4 {[%clk 0:02:07]}  Rf4 {[%clk 0:01:36]} 0-1


[Site "https://www.chess.com"]

[Event "Titled Tuesday Blitz March 21 Early 2023"]
[White "Staudenhocker43"]
[Black "Delorme, Alban"]
[BlackFideId "623636"]
[WhiteElo "2481"]
[BlackElo "2196"]
[Result "1-0"]
[Round "02"]
[TimeControl "180+2"]
[Date "2023.03.21"]
[WhiteClock "0:00:16"]
[BlackClock "0:00:02"]

1. e4 {[%clk 0:03:00]}  c5 {[%clk 0:03:00]} 2. Nf3 {[%clk 0:03:01]}  d6 {[%clk 0:03:00]} 3. d4 {[%clk 0:03:01]}  cxd4 {[%clk 0:03:01]} 4. Nxd4 {[%clk 0:03:01]}  Nf6 {[%clk 0:03:01]} 5. Nc3 {[%clk 0:03:02]}  a6 {[%clk 0:03:02]} 6. Bg5 {[%clk 0:03:02]}  e6 {[%clk 0:03:01]} 7. f4 {[%clk 0:03:02]}  Be7 {[%clk 0:03:02]} 8. Qf3 {[%clk 0:03:01]}  Qc7 {[%clk 0:03:03]} 9. O-O-O {[%clk 0:03:01]}  Nbd7 {[%clk 0:03:03]} 10. g4 {[%clk 0:03:01]}  h6 {[%clk 0:03:04]} 11. Bxf6 {[%clk 0:03:01]}  Bxf6 {[%clk 0:03:01]} 12. h4 {[%clk 0:03:02]}  Qb6 {[%clk 0:03:01]} 13. Nb3 {[%clk 0:02:53]}  Qc7 {[%clk 0:03:00]} 14. Rd3 {[%clk 0:02:47]}  g5 {[%clk 0:02:49]} 15. hxg5 {[%clk 0:02:47]}  hxg5 {[%clk 0:02:49]} 16. Rxh8+ {[%clk 0:02:47]}  Bxh8 {[%clk 0:02:50]} 17. Qh3 {[%clk 0:02:43]}  Bf6 {[%clk 0:02:44]} 18. fxg5 {[%clk 0:02:28]}  Bxg5+ {[%clk 0:02:42]} 19. Kb1 {[%clk 0:02:29]}  Ne5 {[%clk 0:02:35]} 20. Qh8+ {[%clk 0:02:29]}  Ke7 {[%clk 0:02:35]} 21. Rd1 {[%clk 0:02:22]}  Bf6 {[%clk 0:02:19]} 22. Qh5 {[%clk 0:02:17]}  Nf3 {[%clk 0:01:46]} 23. Bg2 {[%clk 0:01:48]}  Bxc3 {[%clk 0:01:29]} 24. Bxf3 {[%clk 0:01:43]}  Be5 {[%clk 0:01:22]} 25. Qh4+ {[%clk 0:01:41]}  Ke8 {[%clk 0:01:03]} 26. g5 {[%clk 0:01:37]}  Qe7 {[%clk 0:00:55]} 27. Na5 {[%clk 0:01:30]}  Bd7 {[%clk 0:00:45]} 28. Bh5 {[%clk 0:01:07]}  Kd8 {[%clk 0:00:33]} 29. Qf2 {[%clk 0:01:00]}  Kc7 {[%clk 0:00:29]} 30. Qxf7 {[%clk 0:00:51]}  Qxg5 {[%clk 0:00:15]} 31. a3 {[%clk 0:00:34]}  Rh8 {[%clk 0:00:10]} 32. Bf3 {[%clk 0:00:23]}  Qf6 {[%clk 0:00:07]} 33. Qxf6 {[%clk 0:00:21]}  Bxf6 {[%clk 0:00:08]} 34. Nc4 {[%clk 0:00:20]}  Bc6 {[%clk 0:00:02]} 35. Rxd6 {[%clk 0:00:16]} 1-0


[Site "https://www.chess.com"]

[Event "Titled Tuesday Blitz March 21 Early 2023"]
[White "Khamdamova, Afruza"]
[Black "Vargas Rodriguez, Wilver"]
[WhiteFideId "14210444"]
[BlackFideId "3509672"]
[WhiteElo "2210"]
[BlackElo "2238"]
[Result "1-0"]
[Round "02"]
[TimeControl "180+2"]
[Date "2023.03.21"]
[WhiteClock "0:00:11"]
[BlackClock "0:00:16"]

1. e4 {[%clk 0:03:00]}  c5 {[%clk 0:02:59]} 2. Nf3 {[%clk 0:03:01]}  d6 {[%clk 0:02:59]} 3. d4 {[%clk 0:03:01]}  cxd4 {[%clk 0:03:00]} 4. Nxd4 {[%clk 0:03:01]}  Nf6 {[%clk 0:03:01]} 5. Nc3 {[%clk 0:03:02]}  a6 {[%clk 0:03:01]} 6. Be2 {[%clk 0:03:02]}  e5 {[%clk 0:03:00]} 7. Nb3 {[%clk 0:03:01]}  Be7 {[%clk 0:03:00]} 8. O-O {[%clk 0:03:02]}  Be6 {[%clk 0:03:01]} 9. Kh1 {[%clk 0:03:00]}  Qc7 {[%clk 0:03:00]} 10. f4 {[%clk 0:02:59]}  Nbd7 {[%clk 0:02:57]} 11. a4 {[%clk 0:02:58]}  b6 {[%clk 0:02:56]} 12. Be3 {[%clk 0:02:55]}  O-O {[%clk 0:02:53]} 13. f5 {[%clk 0:02:52]}  Bc4 {[%clk 0:02:49]} 14. Nd2 {[%clk 0:02:52]}  Bxe2 {[%clk 0:02:44]} 15. Qxe2 {[%clk 0:02:52]}  Rfc8 {[%clk 0:02:14]} 16. g4 {[%clk 0:02:38]}  d5 {[%clk 0:01:49]} 17. exd5 {[%clk 0:02:10]}  Qb7 {[%clk 0:01:42]} 18. Qg2 {[%clk 0:02:10]}  Rxc3 {[%clk 0:01:40]} 19. bxc3 {[%clk 0:02:07]}  Qxd5 {[%clk 0:01:33]} 20. Qxd5 {[%clk 0:01:24]}  Nxd5 {[%clk 0:01:33]} 21. Nc4 {[%clk 0:01:20]}  Rc8 {[%clk 0:00:47]} 22. Rad1 {[%clk 0:01:15]}  Nxe3 {[%clk 0:00:43]} 23. Nxe3 {[%clk 0:01:15]}  Nc5 {[%clk 0:00:42]} 24. Nd5 {[%clk 0:01:11]}  Bd8 {[%clk 0:00:42]} 25. Ra1 {[%clk 0:01:02]}  Kf8 {[%clk 0:00:41]} 26. f6 {[%clk 0:00:37]}  Rc6 {[%clk 0:00:39]} 27. fxg7+ {[%clk 0:00:35]}  Kxg7 {[%clk 0:00:39]} 28. Rf5 {[%clk 0:00:34]}  f6 {[%clk 0:00:30]} 29. g5 {[%clk 0:00:32]}  fxg5 {[%clk 0:00:21]} 30. Rxe5 {[%clk 0:00:31]}  h6 {[%clk 0:00:19]} 31. Ne7 {[%clk 0:00:24]}  Rf6 {[%clk 0:00:12]} 32. Nf5+ {[%clk 0:00:22]}  Kg6 {[%clk 0:00:12]} 33. Ng3 {[%clk 0:00:22]}  Bc7 {[%clk 0:00:11]} 34. Re3 {[%clk 0:00:21]}  Bf4 {[%clk 0:00:11]} 35. Re2 {[%clk 0:00:20]}  h5 {[%clk 0:00:11]} 36. Rae1 {[%clk 0:00:18]}  h4 {[%clk 0:00:11]} 37. Ne4 {[%clk 0:00:17]}  Rc6 {[%clk 0:00:10]} 38. Nxc5 {[%clk 0:00:17]}  Rxc5 {[%clk 0:00:11]} 39. Re6+ {[%clk 0:00:17]}  Kh5 {[%clk 0:00:12]} 40. Rxb6 {[%clk 0:00:12]}  a5 {[%clk 0:00:12]} 41. Rb5 {[%clk 0:00:12]}  Rxc3 {[%clk 0:00:12]} 42. Re2 {[%clk 0:00:11]}  Ra3 {[%clk 0:00:08]} 43. Rxa5 {[%clk 0:00:11]}  h3 {[%clk 0:00:09]} 44. Re1 {[%clk 0:00:10]}  Bd2 {[%clk 0:00:09]} 45. Rae5 {[%clk 0:00:07]}  Bxe1 {[%clk 0:00:09]} 46. Rxe1 {[%clk 0:00:08]}  Rxa4 {[%clk 0:00:09]} 47. Rc1 {[%clk 0:00:07]}  Rg4 {[%clk 0:00:08]} 48. c4 {[%clk 0:00:06]}  Rf4 {[%clk 0:00:02]} 49. c5 {[%clk 0:00:07]}  Rf8 {[%clk 0:00:03]} 50. c6 {[%clk 0:00:07]}  Rc8 {[%clk 0:00:04]} 51. Kg1 {[%clk 0:00:06]}  Kg6 {[%clk 0:00:04]} 52. Kf2 {[%clk 0:00:06]}  Kf6 {[%clk 0:00:04]} 53. Kg3 {[%clk 0:00:07]}  Ke6 {[%clk 0:00:05]} 54. Kxh3 {[%clk 0:00:07]}  Kd6 {[%clk 0:00:06]} 55. Kg4 {[%clk 0:00:08]}  Rxc6 {[%clk 0:00:06]} 56. Rxc6+ {[%clk 0:00:08]}  Kxc6 {[%clk 0:00:07]} 57. Kxg5 {[%clk 0:00:08]}  Kd7 {[%clk 0:00:08]} 58. Kg6 {[%clk 0:00:08]}  Ke7 {[%clk 0:00:09]} 59. Kg7 {[%clk 0:00:09]}  Ke6 {[%clk 0:00:09]} 60. h4 {[%clk 0:00:09]}  Kf5 {[%clk 0:00:09]} 61. h5 {[%clk 0:00:10]}  Kg5 {[%clk 0:00:10]} 62. h6 {[%clk 0:00:10]}  Kf5 {[%clk 0:00:10]} 63. h7 {[%clk 0:00:11]}  Ke5 {[%clk 0:00:11]} 64. h8=Q {[%clk 0:00:10]}  Kd5 {[%clk 0:00:12]} 65. Qh6 {[%clk 0:00:11]}  Ke5 {[%clk 0:00:12]} 66. Qf6+ {[%clk 0:00:11]}  Kd5 {[%clk 0:00:11]} 67. Kf7 {[%clk 0:00:11]}  Kc5 {[%clk 0:00:12]} 68. Ke7 {[%clk 0:00:11]}  Kd5 {[%clk 0:00:12]} 69. Qe6+ {[%clk 0:00:11]}  Kc5 {[%clk 0:00:13]} 70. Qd6+ {[%clk 0:00:11]}  Kb5 {[%clk 0:00:14]} 71. Kd7 {[%clk 0:00:11]}  Kc4 {[%clk 0:00:15]} 72. Kc6 {[%clk 0:00:11]}  Kc3 {[%clk 0:00:16]} 73. Qd5 {[%clk 0:00:11]}  Kb4 {[%clk 0:00:16]} 74. Qc5+ {[%clk 0:00:10]}  Kb3 {[%clk 0:00:16]} 75. Kd5 {[%clk 0:00:11]} 1-0


[Site "https://www.chess.com"]